bitfinex-derivatives/quotes_SOLF0:USTF0_20250331
["timestamp","ask_amount","ask_price","bid_price","bid_amount"]
[1743445039434,22.00362958,125.24,125.21,30.36]
[1743445039634,7.9865,125.22,125.21,30.36]
[1743445040737,22.00362958,125.24,125.2,0.05521535]
[1743445041235,21.95234732,125.22,125.2,0.05521535]
[1743445041440,7.9872,125.21,125.2,0.05521535]
[1743445042333,22.00362958,125.24,125.2,0.05521535]
[1743445042538,0.05128226,125.24,125.2,0.05521535]
[1743445042838,7.9862,125.23,125.2,0.05521535]
[1743445043238,0.05128226,125.24,125.2,0.05521535]
[1743445043539,7.9862,125.23,125.2,0.05521535]
[1743445044838,7.9867,125.22,125.2,0.05521535]
[1743445045235,0.05128226,125.24,125.2,0.05521535]
[1743445045440,21.95234732,125.22,125.2,30.36001535]
[1743445045881,22.00362958,125.24,125.2,30.36001535]
[1743445046759,7.9872,125.21,125.2,30.36001535]
[1743445047366,7.9872,125.21,125.2,1.535e-05]
[1743445049455,7.9891,125.18,125.17,317.94]
[1743445049851,7.9904,125.16,125.15,3.1638]
[1743445050052,7.9904,125.16,125.15,33.5038]
[1743445050249,21.95234732,125.18,125.15,30.34]
[1743445050452,21.95234732,125.16,125.15,30.34]
[1743445050642,21.95234732,125.16,125.15,0.05245847]
[1743445051039,29.94274732,125.16,125.15,0.05245847]
[1743445051850,7.9904,125.16,125.15,0.05245847]
[1743445053051,7.9904,125.16,125.15,5.847e-05]
[1743445053546,29.94274732,125.16,125.15,5.847e-05]
[1743445055155,21.95234732,125.16,125.12,30.36]
[1743445055359,21.95234732,125.14,125.12,30.36]
[1743445055850,7.9923,125.13,125.12,30.36]
[1743445056861,8.04229521,125.14,125.12,30.36]
[1743445057068,0.05039521,125.14,125.12,30.36]
[1743445057879,7.9907,125.16,125.12,30.36]
[1743445058176,312.57518881,125.19,125.12,33.7029]
[1743445058371,21.95234732,125.19,125.12,33.7029]
[1743445058769,7.9907,125.16,125.13,7.9919]
[1743445059171,8.04403527,125.16,125.13,0.05099284]
[1743445059366,8.04403527,125.16,125.13,8.04299284]
[1743445059658,7.9911,125.15,125.13,0.05099284]
[1743445060052,7.9916,125.14,125.13,0.05099284]
[1743445063854,0.05333527,125.16,125.13,0.05099284]
[1743445064457,0.05333527,125.16,125.14,7.9912]
[1743445064656,7.99,125.17,125.15,36.7144]
[1743445065162,35.09285627,125.2,125.15,36.7144]
[1743445065760,0.05797413,125.19,125.16,0.05206177]
[1743445066256,7.9897,125.17,125.16,0.05206177]
[1743445068961,35.1508304,125.19,125.11,290.8965]
[1743445069258,35.09285627,125.17,125.12,30.36]
[1743445069658,7.9923,125.13,125.12,30.36]
[1743445069857,35.09285627,125.17,125.12,30.36]
[1743445070257,7.9923,125.13,125.12,30.36]
[1743445071667,8.04642997,125.14,125.12,30.36]
[1743445071958,0.05442997,125.14,125.12,30.36]
[1743445072165,0.05442997,125.14,125.12,38.3526]
[1743445072461,35.09285627,125.17,125.12,30.36]
[1743445072662,290.62284149,125.19,125.12,33.4702]
[1743445073460,290.62284149,125.19,125.14,7.9913]
[1743445073665,0.05044627,125.17,125.15,30.36]
[1743445073861,0.05044627,125.17,125.15,33.6208]
[1743445074360,8.04024627,125.17,125.15,33.6208]
[1743445074561,0.05044627,125.17,125.15,30.36]
[1743445074760,7.9904,125.16,125.15,30.36]
[1743445075164,0.05044627,125.17,125.15,30.36]
[1743445075363,8.04054627,125.17,125.15,30.36]
[1743445075956,7.9904,125.16,125.15,30.36]
[1743445076670,7.9904,125.16,125.15,17.6209]
[1743445078464,7.9904,125.16,125.14,0.05437529]
[1743445078679,7.991,125.15,125.14,0.05437529]
[1743445079364,7.9907,125.16,125.14,0.05437529]
[1743445079565,0.05044627,125.17,125.14,0.05437529]
[1743445079863,0.05044627,125.17,125.15,7.9907]
[1743445080069,312.55002633,125.21,125.16,30.36]
[1743445080262,21.92718484,125.21,125.16,30.36]
[1743445080669,7.9891,125.18,125.16,38.3501]
[1743445081059,7.9891,125.18,125.16,30.41096169]
[1743445081265,8.04907833,125.18,125.16,30.41096169]
[1743445081865,7.9897,125.17,125.16,30.41096169]
[1743445082976,7.9897,125.17,125.16,30.39096169]
[1743445084970,7.9897,125.17,125.16,0.05096169]
[1743445085171,7.9897,125.17,125.16,6.169e-05]
[1743445089171,8.04937833,125.18,125.16,6.169e-05]
[1743445089376,0.05997833,125.18,125.16,6.169e-05]
[1743445089570,35.08041247,125.17,125.16,6.169e-05]
[1743445089772,35.08041247,125.17,125.14,30.34]
[1743445090475,0.05997833,125.18,125.14,30.34]
[1743445090972,35.08041247,125.24,125.15,0.05416545]
[1743445091168,35.08041247,125.24,125.15,3.1738]
[1743445091374,7.9878,125.2,125.17,7.9894]
[1743445091578,35.08041247,125.24,125.18,30.34]
[1743445091772,325.70325396,125.26,125.18,30.34]
[1743445091973,7.9865,125.23,125.19,11.3062]
[1743445092180,0.06091908,125.23,125.21,0.05990408]
[1743445092386,0.06091908,125.23,125.22,30.34]
[1743445093173,8.04681908,125.23,125.22,30.34]
[1743445094778,0.06091908,125.23,125.22,30.34]
[1743445096384,35.08041247,125.28,125.22,30.34]
[1743445096683,7.9846,125.26,125.22,38.3263]
[1743445097270,35.08041247,125.28,125.22,30.34]
[1743445097678,0.05802957,125.26,125.24,0.05247025]
[1743445098582,7.9846,125.25,125.24,0.05247025]
[1743445099985,0.05802957,125.26,125.24,0.05247025]
[1743445100178,0.05802957,125.26,125.25,30.34]
[1743445101275,8.04202957,125.26,125.25,30.34]
[1743445102477,8.04202957,125.26,125.25,2.6596]
[1743445102676,35.13844204,125.26,125.22,30.34]
[1743445103182,7.9859,125.23,125.22,30.34]
[1743445103982,7.9856,125.24,125.22,30.34]
[1743445104384,7.9859,125.23,125.22,30.34]
[1743445106820,35.13844204,125.26,125.21,0.06013642]
[1743445106821,7.9865,125.22,125.21,0.06013642]
[1743445109702,29.91049688,125.22,125.21,0.06013642]
[1743445110683,7.9891,125.18,125.17,2.2685]
[1743445110883,21.92399688,125.19,125.16,30.32]
[1743445111085,7.991,125.15,125.14,4.3269]
[1743445111587,21.92399688,125.17,125.13,30.32]
[1743445111787,21.92399688,125.17,125.13,30.380355]
[1743445111788,0.06060893,125.16,125.13,30.380355]
[1743445115489,0.06060893,125.16,125.13,38.372255]
[1743445115890,0.06060893,125.16,125.13,30.380355]
[1743445118194,0.06060893,125.16,125.15,7.991]
[1743445118593,0.06060893,125.16,125.13,30.380355]
[1743445118794,0.06060893,125.16,125.14,7.9911]
[1743445118994,0.06060893,125.16,125.13,30.380355]
[1743445119798,0.06060893,125.16,125.15,7.991]
[1743445122295,0.06060893,125.16,125.13,30.380355]
[1743445123492,0.06060893,125.16,125.13,38.372355]
[1743445123891,0.06060893,125.16,125.13,30.380355]
[1743445126994,8.05110893,125.16,125.13,30.380355]
[1743445127298,0.06060893,125.16,125.14,30.34]
[1743445127497,8.05120893,125.16,125.14,30.34]
[1743445128200,0.06060893,125.16,125.14,30.34]
[1743445128400,35.10990051,125.21,125.14,30.34]
[1743445128592,35.10990051,125.21,125.15,2.1045]
[1743445128797,7.9881,125.2,125.16,7.9903]
[1743445129096,7.9881,125.2,125.17,30.34]
[1743445129701,7.9885,125.19,125.17,30.39590623]
[1743445129997,0.05744084,125.2,125.17,30.39590623]
[1743445130298,35.10990051,125.19,125.15,2.1045]
[1743445130502,35.10990051,125.19,125.13,317.88]
[1743445131505,7.9913,125.15,125.13,317.88]
[1743445131897,7.9913,125.15,125.13,317.9368092]
[1743445132298,7.9916,125.14,125.13,317.9368092]
[1743445132501,7.9916,125.14,125.13,30.3968092]
[1743445133200,7.9913,125.15,125.13,30.3968092]
[1743445133503,35.16353817,125.17,125.13,30.3968092]
[1743445133701,21.99356124,125.17,125.13,30.3968092]
[1743445133898,7.9911,125.15,125.13,30.3968092]
[1743445134095,21.99356124,125.17,125.13,30.3968092]
[1743445135502,7.9916,125.14,125.13,30.3968092]
[1743445135900,7.9914,125.15,125.13,30.3968092]
[1743445136394,21.99356124,125.17,125.13,30.3968092]
[1743445136599,7.9908,125.16,125.13,30.3968092]
[1743445137002,0.05363766,125.17,125.14,7.9915]
[1743445137905,8.04373766,125.17,125.14,7.9915]
[1743445138706,8.04373766,125.17,125.15,30.32]
[1743445140707,0.05363766,125.17,125.15,38.311]
[1743445140906,21.93992358,125.21,125.15,30.32]
[1743445141098,21.93992358,125.21,125.16,7.3845]
[1743445141301,7.9881,125.2,125.17,7.9894]
[1743445141502,7.9881,125.2,125.18,30.32]
[1743445141709,21.93992358,125.23,125.18,30.32]
[1743445142008,7.987,125.22,125.19,7.9882]
[1743445142208,8.03979964,125.22,125.19,8.04734452]
[1743445142603,0.05279964,125.22,125.19,0.05914452]
[1743445143308,0.05279964,125.22,125.2,7.9878]
[1743445143507,21.93992358,125.25,125.21,30.32]
[1743445143710,7.9853,125.24,125.21,30.32]
[1743445144316,7.9842,125.26,125.21,30.32]
[1743445144501,21.93992358,125.29,125.22,7.7073]
[1743445144904,7.9838,125.27,125.24,7.985]
[1743445145106,7.9838,125.27,125.25,30.32]
[1743445145304,7.984,125.26,125.25,30.32]
[1743445146006,10.90385697,125.31,125.25,30.32]
[1743445146207,32.84378055,125.31,125.25,30.32]
[1743445146607,7.9825,125.29,125.25,38.3041]
[1743445146802,32.84378055,125.31,125.25,38.3041]
[1743445146803,10.90385697,125.31,125.25,30.32]
[1743445147009,108.25177647,125.33,125.25,52.25992358]
[1743445147010,21.93992358,125.33,125.25,52.25992358]
[1743445147307,0.05060631,125.29,125.27,0.05744507]
[1743445147506,0.05060631,125.29,125.28,30.32]
[1743445148205,21.93992358,125.35,125.28,30.32]
[1743445149215,43.65454101,125.36,125.28,30.32]
[1743445149414,0.04685302,125.33,125.3,0.05431876]
[1743445149607,0.04685302,125.33,125.31,30.32]
[1743445150808,7.9802,125.32,125.31,30.32]
[1743445151012,0.04685302,125.33,125.31,30.32]
[1743445152411,8.02635302,125.33,125.31,30.32]
[1743445153012,0.04685302,125.33,125.31,30.32]
[1743445154917,0.04685302,125.33,125.31,38.3008]
[1743445155416,314.54784149,125.41,125.33,7.9792]
[1743445155611,314.54784149,125.41,125.34,30.3]
[1743445155812,7.5705,125.43,125.34,30.3]
[1743445156011,7.5705,125.43,125.34,38.2785]
[1743445156216,7.9776,125.36,125.35,3.526]
[1743445156721,35.0001605,125.42,125.35,3.526]
[1743445157121,35.0001605,125.42,125.37,0.05907901]
[1743445157328,35.0001605,125.4,125.38,30.3]
[1743445157514,35.0001605,125.4,125.29,3.526]
[1743445157719,35.0001605,125.36,125.3,30.3]
[1743445158124,7.9798,125.33,125.3,30.3]
[1743445158517,35.0001605,125.36,125.3,30.3]
[1743445158711,8.03701561,125.33,125.3,30.35482997]
[1743445160826,8.03701561,125.33,125.3,0.05482997]
[1743445160827,0.05701561,125.33,125.3,0.05482997]
[1743445161021,0.05701561,125.33,125.31,30.28]
[1743445161327,7.9802,125.32,125.31,30.28]
[1743445161620,0.05701561,125.33,125.31,30.28]
[1743445162325,8.03681561,125.33,125.31,30.28]
[1743445162525,0.05701561,125.33,125.31,30.28]
[1743445163524,0.05701561,125.33,125.32,7.9802]
[1743445163724,7.978,125.36,125.31,30.28]
[1743445163926,7.9774,125.37,125.33,7.9793]
[1743445164115,7.9774,125.37,125.34,30.28]
[1743445164321,35.0001605,125.39,125.34,30.28]
[1743445164716,35.0001605,125.39,125.34,38.2588]
[1743445165226,7.9774,125.37,125.35,0.05327123]
[1743445165429,35.0001605,125.39,125.35,0.05327123]
[1743445165927,7.9776,125.36,125.35,0.05327123]
[1743445166229,35.0001605,125.39,125.35,0.05327123]
[1743445166429,7.9774,125.37,125.35,0.05327123]
[1743445166725,35.0001605,125.42,125.35,0.05327123]
[1743445166926,3.8528,125.43,125.34,30.28]
[1743445167124,3.8011,125.44,125.37,0.05066567]
[1743445167325,3.8011,125.44,125.38,30.28]
[1743445167630,7.9755,125.4,125.38,30.28]
[1743445168128,7.9757,125.39,125.38,0.05360936]
[1743445168332,7.9757,125.39,125.38,30.33360936]
[1743445170134,7.9757,125.39,125.38,0.05360936]
[1743445176044,7.9757,125.39,125.38,9.36e-06]
[1743445176944,25.82034576,125.4,125.31,294.8088]
[1743445177246,21.86114576,125.34,125.32,30.26]
[1743445177639,7.9795,125.33,125.32,30.26]
[1743445181753,306.58324149,125.32,125.21,88.425306]
[1743445181945,21.86114576,125.26,125.21,118.705306]
[1743445182145,21.86114576,125.3,125.21,140.56645176]
[1743445182551,320.01218725,125.32,125.21,140.56645176]
[1743445182746,7.9819,125.3,125.24,7.9852]
[1743445182945,0.05646428,125.28,125.26,0.05919555]
[1743445183346,21.86114576,125.34,125.26,4.05199555]
[1743445183644,21.86114576,125.34,125.26,3.9928]
[1743445184450,0.05160195,125.31,125.29,0.05449319]
[1743445184758,0.05160195,125.31,125.3,30.28]
[1743445187053,8.03240195,125.31,125.3,30.28]
[1743445196654,8.03240195,125.31,125.29,0.05449319]
[1743445196859,7.9814,125.3,125.29,30.31449319]
[1743445199462,7.9814,125.3,125.29,0.05449319]
[1743445199657,29.84254576,125.3,125.29,0.05449319]
[1743445200060,7.9814,125.3,125.29,0.05449319]
[1743445200261,8.03280195,125.31,125.29,0.05449319]
[1743445200464,8.03280195,125.31,125.3,30.26]
[1743445200763,0.05160195,125.31,125.3,30.26]
[1743445202166,8.03240195,125.31,125.3,30.26]
[1743445203864,8.03240195,125.31,125.29,0.05449319]
[1743445203865,7.9814,125.3,125.29,0.05449319]
[1743445204060,29.84254576,125.3,125.29,0.05449319]
[1743445204459,21.86114576,125.3,125.23,7.9855]
[1743445204662,21.86114576,125.3,125.25,30.26]
[1743445205266,21.86114576,125.28,125.25,30.26]
[1743445205666,7.9833,125.27,125.25,30.31757537]
[1743445206065,0.05560264,125.28,125.25,30.31757537]
[1743445206367,0.05560264,125.28,125.27,7.9833]
[1743445207660,0.05560264,125.28,125.27,38.2433]
[1743445209167,0.05560264,125.28,125.27,30.26]
[1743445210469,0.05560264,125.28,125.27,38.2433]
[1743445211270,0.05560264,125.28,125.27,30.26]
[1743445211859,21.9167484,125.28,125.25,0.05757537]
[1743445212061,21.86114576,125.26,125.2,33.22933705]
[1743445212261,21.86114576,125.24,125.2,63.48933705]
[1743445212471,21.86114576,125.24,125.2,33.22933705]
[1743445212670,7.6019,125.27,125.2,151.91464305]
[1743445212671,21.86114576,125.22,125.2,151.91464305]
[1743445212872,7.9872,125.21,125.2,151.91464305]
[1743445213072,7.9872,125.21,125.2,121.65464305]
[1743445215674,7.9878,125.2,125.19,30.31981994]
[1743445216371,29.84894576,125.2,125.19,30.31981994]
[1743445216771,29.84894576,125.2,125.19,0.05981994]
[1743445218073,7.9906,125.16,125.14,3.9205]
[1743445218265,21.86114576,125.16,125.15,30.28]
[1743445218470,21.86114576,125.16,125.13,317.54]
[1743445218672,29.85184576,125.16,125.13,317.54]
[1743445219172,29.85184576,125.16,125.13,317.59905265]
[1743445219376,0.05607708,125.16,125.13,317.59905265]
[1743445220477,29.84914576,125.2,125.16,7.9899]
[1743445220679,29.84914576,125.2,125.17,30.28]
[1743445221271,29.84864576,125.21,125.17,38.2695]
[1743445221573,0.05110291,125.2,125.18,0.05568637]
[1743445223368,8.03920291,125.2,125.18,0.05568637]
[1743445223570,0.05110291,125.2,125.18,0.05568637]
[1743445223768,29.84954576,125.19,125.18,0.05568637]
[1743445223977,21.86114576,125.19,125.15,30.28]
[1743445224771,21.86114576,125.17,125.15,30.28]
[1743445224978,21.86114576,125.17,125.13,287.26]
[1743445225178,21.86114576,125.15,125.14,30.28]
[1743445225374,7.9921,125.14,125.12,30.28]
[1743445225574,21.86114576,125.15,125.14,0.0524727]
[1743445225778,35.10729732,125.18,125.14,0.0524727]
[1743445225976,0.05335215,125.16,125.14,0.0524727]
[1743445226177,0.05335215,125.16,125.15,30.28]
[1743445229175,8.04375215,125.16,125.15,30.28]
[1743445229876,7.991,125.15,125.14,0.0524727]
[1743445235485,86.24894679,125.16,125.06,7.9965]
[1743445235685,35.10729732,125.13,125.04,11.5835]
[1743445235886,35.10729732,125.13,125.08,30.28]
[1743445236086,39.12379732,125.13,125.08,30.28]
[1743445236284,7.9955,125.08,125.05,7.9974]
[1743445236482,7.9955,125.08,125.07,317.74]
[1743445236680,7.9955,125.08,125.07,287.46]
[1743445236977,0.05382439,125.09,125.06,0.06081609]
[1743445237587,7.9955,125.08,125.06,0.06081609]
[1743445237789,0.05382439,125.09,125.06,0.06081609]
[1743445237991,7.9961,125.07,125.06,0.06081609]
[1743445238692,7.9958,125.08,125.06,0.06081609]
[1743445239297,35.16112171,125.09,125.06,0.06081609]
[1743445239896,7.9958,125.08,125.06,0.06081609]
[1743445240297,35.16112171,125.09,125.06,0.06081609]
[1743445240495,7.9956,125.08,125.06,0.06081609]
[1743445241800,0.05382439,125.09,125.06,0.06081609]
[1743445242702,0.05382439,125.09,125.06,3.96781609]
[1743445243001,0.05382439,125.09,125.06,11.61101609]
[1743445243206,0.05382439,125.09,125.07,7.9961]
[1743445243500,0.05382439,125.09,125.08,30.3]
[1743445244905,8.04862439,125.09,125.08,30.3]
[1743445245701,7.9961,125.07,125.06,30.36081609]
[1743445246505,29.96604143,125.07,125.06,0.06081609]
[1743445249610,22.02376582,125.09,125.06,0.06081609]
[1743445250006,30.01916582,125.09,125.06,0.06081609]
[1743445250204,22.02376582,125.09,125.07,30.3]
[1743445250399,0.05382439,125.09,125.07,30.3]
[1743445251107,22.02376582,125.09,125.07,30.3]
[1743445252107,7.9961,125.07,125.06,0.06081609]
[1743445252409,29.96604143,125.07,125.06,0.06081609]
[1743445252904,21.96994143,125.07,125.05,30.3]
[1743445253106,7.9968,125.06,125.05,30.3]
[1743445253908,7.9984,125.04,125.03,30.3]
[1743445254100,35.16105966,125.08,125.02,7.6094]
[1743445254307,0.05902808,125.05,125.04,0.05899305]
[1743445254513,35.16105966,125.06,125.04,0.05899305]
[1743445254803,7.9974,125.05,125.04,0.05899305]
[1743445256313,7.9974,125.05,125.04,9.305e-05]
[1743445258717,43.21700976,125.06,125.04,9.305e-05]
[1743445259111,35.22010976,125.06,125.04,9.305e-05]
[1743445259916,7.9974,125.05,125.04,9.305e-05]
[1743445260313,8.0560501,125.06,125.04,9.305e-05]
[1743445260722,0.0590501,125.06,125.05,30.3]
[1743445260918,39.17755966,125.13,125.05,33.9897]
[1743445261418,7.9938,125.11,125.05,33.9897]
[1743445262018,0.05113923,125.09,125.08,7.9954]
[1743445262213,3.9426,125.15,125.08,30.3]
[1743445262415,3.9426,125.15,125.08,45.9957]
[1743445262613,3.9426,125.15,125.08,7.7006]
[1743445262816,3.9426,125.15,125.09,30.3]
[1743445263019,7.9942,125.1,125.09,30.3]
[1743445265613,8.05153385,125.11,125.09,30.3]
[1743445266215,0.05773385,125.11,125.09,30.3]
[1743445266420,291.2349,125.19,125.09,38.3]
[1743445266421,35.16105966,125.19,125.09,38.3]
[1743445266728,7.9896,125.18,125.1,3.8488]
[1743445267025,35.16105966,125.19,125.1,3.8488]
[1743445267219,7.9901,125.17,125.1,3.8488]
[1743445267523,35.16105966,125.19,125.11,3.7819]
[1743445267823,0.05381132,125.15,125.12,30.33960108]
[1743445268517,0.05381132,125.15,125.12,38.33210108]
[1743445269018,0.05381132,125.15,125.12,30.33960108]
[1743445269924,0.05381132,125.15,125.13,7.9919]
[1743445270120,0.05381132,125.15,125.12,30.33960108]
[1743445270321,7.9887,125.19,125.12,30.33960108]
[1743445270522,8.0688,125.22,125.12,30.33960108]
[1743445270820,8.0688,125.22,125.12,30.28]
[1743445271223,7.9897,125.18,125.14,7.9913]
[1743445271424,0.05223222,125.18,125.16,0.05083375]
[1743445271722,8.04163222,125.18,125.17,30.28]
[1743445272624,0.05223222,125.18,125.17,30.28]
[1743445274121,35.16105966,125.23,125.17,30.28]
[1743445274317,7.9874,125.21,125.17,38.2691]
[1743445274525,35.16105966,125.23,125.18,3.9766]
[1743445275025,7.9873,125.21,125.18,11.9655]
[1743445275225,7.9873,125.21,125.19,0.05396808]
[1743445275426,7.9873,125.21,125.2,30.26]
[1743445280231,0.05428465,125.22,125.2,30.26]
[1743445280830,7.985,125.25,125.21,7.9872]
[1743445281129,21.92203426,125.26,125.2,30.26]
[1743445282029,0.05379336,125.24,125.22,0.05758587]
[1743445282229,0.05379336,125.24,125.23,30.26]
[1743445282830,21.97582762,125.24,125.23,30.26]
[1743445283238,21.97582762,125.24,125.22,30.31758587]
[1743445283638,7.9859,125.23,125.22,0.05758587]
[1743445283838,21.97582762,125.24,125.21,30.26]
[1743445284037,21.92203426,125.22,125.21,30.26]
[1743445284233,21.92203426,125.22,125.17,287.52]
[1743445284435,21.92203426,125.22,125.18,30.26]
[1743445284935,7.9884,125.19,125.18,30.26]
[1743445287037,21.92203426,125.2,125.17,0.05238147]
[1743445287038,7.9891,125.18,125.17,0.05238147]
[1743445287338,21.92203426,125.18,125.15,30.24]
[1743445287727,21.92203426,125.18,125.11,295.4532]
[1743445287728,21.92203426,125.16,125.1,11.8117]
[1743445287934,21.92203426,125.16,125.11,30.24]
[1743445288441,0.05339064,125.15,125.12,30.29301581]
[1743445288940,8.04459064,125.15,125.13,30.24]
[1743445289730,0.05339064,125.15,125.13,30.24]
[1743445290037,0.05339064,125.15,125.13,38.2319]
[1743445293434,0.05339064,125.15,125.13,30.24]
[1743445296043,21.92203426,125.14,125.12,0.05301581]
[1743445296544,21.92203426,125.12,125.11,30.24]
[1743445296744,21.92203426,125.12,125.1,30.24]
[1743445297043,21.92203426,125.14,125.11,30.24]
[1743445297241,7.9927,125.13,125.11,30.24]
[1743445297442,21.97693171,125.14,125.11,30.29528727]
[1743445298235,7.9929,125.12,125.11,30.29528727]
[1743445299942,7.9926,125.13,125.11,30.29528727]
[1743445300643,21.97693171,125.14,125.11,30.29528727]
[1743445301644,29.96863171,125.14,125.11,30.29528727]
[1743445303143,29.96863171,125.14,125.11,38.28878727]
[1743445304246,29.96863171,125.14,125.11,30.29528727]
[1743445304944,21.97693171,125.14,125.11,30.29528727]
[1743445305747,29.96913171,125.14,125.11,30.29528727]
[1743445308645,29.96913171,125.14,125.11,38.28878727]
[1743445309043,7.9923,125.13,125.11,30.29528727]
[1743445310046,29.96873171,125.14,125.11,38.28858727]
[1743445310248,0.05489745,125.14,125.11,30.29528727]
[1743445310644,0.05489745,125.14,125.13,7.9923]
[1743445310844,0.05489745,125.14,125.11,30.29528727]
[1743445311148,8.04679745,125.14,125.11,38.28858727]
[1743445311445,0.05489745,125.14,125.11,30.29528727]
[1743445312052,0.05489745,125.14,125.12,7.9929]
[1743445312751,8.04669745,125.14,125.11,38.28848727]
[1743445313453,7.9925,125.13,125.11,38.28848727]
[1743445313642,21.97693171,125.14,125.11,0.05528727]
[1743445313846,21.97693171,125.14,125.12,30.24]
[1743445314455,21.97693171,125.14,125.11,0.05528727]
[1743445314753,21.92203426,125.12,125.11,0.05528727]
[1743445314956,29.91493426,125.12,125.11,0.05528727]
[1743445315548,7.9926,125.13,125.11,0.05528727]
[1743445316149,7.9929,125.12,125.11,0.05528727]
[1743445316552,21.97693171,125.14,125.11,0.05528727]
[1743445316754,7.9925,125.13,125.11,0.05528727]
[1743445317053,21.97693171,125.14,125.11,0.05528727]
[1743445317254,7.9927,125.13,125.11,0.05528727]
[1743445318149,7.9929,125.12,125.11,0.05528727]
[1743445320557,0.05489745,125.14,125.11,0.05528727]
[1743445321054,7.9923,125.13,125.11,0.05528727]
[1743445321248,0.05489745,125.14,125.11,0.05528727]
[1743445321447,21.97693171,125.14,125.11,0.05528727]
[1743445321646,7.9929,125.12,125.11,0.05528727]
[1743445324156,29.92203426,125.12,125.05,320.60204243]
[1743445324347,46.2233,125.15,125.05,320.60204243]
[1743445324348,21.92203426,125.08,125.05,320.60204243]
[1743445324547,21.92203426,125.08,125.05,33.10204243]
[1743445324754,7.9968,125.06,125.05,33.10204243]
[1743445326960,0.06061894,125.07,125.04,30.29224403]
[1743445327361,0.06061894,125.07,125.05,30.24]
[1743445327556,21.92203426,125.13,125.05,34.24]
[1743445327852,21.92203426,125.11,125.05,42.2371]
[1743445328054,21.92203426,125.11,125.05,34.24]
[1743445328450,7.9951,125.09,125.05,34.24]
[1743445328656,8.05345204,125.09,125.07,0.05348209]
[1743445328960,21.9803863,125.09,125.07,0.05348209]
[1743445329857,7.9955,125.08,125.07,0.05348209]
[1743445330555,21.9803863,125.09,125.07,0.05348209]
[1743445330753,0.05835204,125.09,125.07,0.05348209]
[1743445331759,8.05325204,125.09,125.07,0.05348209]
[1743445333163,0.05835204,125.09,125.07,0.05348209]
[1743445333359,0.05835204,125.09,125.08,30.26]
[1743445334464,0.05835204,125.09,125.08,38.2555]
[1743445334856,0.05835204,125.09,125.08,30.26]
[1743445335459,0.05835204,125.09,125.08,38.2555]
[1743445335661,0.05835204,125.09,125.08,30.26]
[1743445336256,8.05315204,125.09,125.08,30.26]
[1743445336458,0.05835204,125.09,125.08,30.26]
[1743445337760,8.05315204,125.09,125.08,30.26]
[1743445338155,0.05835204,125.09,125.07,0.05348209]
[1743445338362,7.9955,125.08,125.07,0.05348209]
[1743445339967,29.9755863,125.09,125.07,0.05348209]
[1743445340168,8.05355204,125.09,125.07,0.05348209]
[1743445340364,0.05835204,125.09,125.07,0.05348209]
[1743445342767,21.9803863,125.09,125.07,0.05348209]
[1743445342964,7.9955,125.08,125.07,0.05348209]
[1743445343171,21.9803863,125.09,125.07,0.05348209]
[1743445343672,0.05835204,125.09,125.07,0.05348209]
[1743445344470,8.05325204,125.09,125.07,0.05348209]
[1743445345171,0.05835204,125.09,125.07,8.04958209]
[1743445346074,0.05835204,125.09,125.08,7.9955]
[1743445347367,7.6967,125.15,125.07,0.05348209]
[1743445347572,3.7349,125.15,125.07,7.583]
[1743445347777,21.92203426,125.16,125.07,29.50503426]
[1743445348377,21.92203426,125.16,125.11,7.9932]
[1743445348680,21.92203426,125.16,125.12,30.24]
[1743445348681,0.05286534,125.13,125.12,30.24]
[1743445348978,0.05286534,125.13,125.09,30.24]
[1743445349174,0.05286534,125.13,125.11,0.05222389]
[1743445349375,7.993,125.12,125.11,0.05222389]
[1743445354072,0.05286534,125.13,125.11,0.05222389]
[1743445354277,0.05286534,125.13,125.12,30.24]
[1743445354978,0.05286534,125.13,125.12,38.2329]
[1743445355379,0.05286534,125.13,125.12,30.24]
[1743445356879,0.05286534,125.13,125.12,38.2329]
[1743445358179,8.04516534,125.13,125.12,30.24]
[1743445358486,0.05286534,125.13,125.12,30.24]
[1743445359486,8.04516534,125.13,125.12,30.24]
[1743445363290,0.05286534,125.13,125.12,30.24]